[Event "Titled Tuesday Blitz April 18 Late 2023"]
[White "Chemin, Justo Reinaldo"]
[Black "Rose, Felix"]
[WhiteFideId "2101580"]
[BlackFideId "5105722"]
[WhiteElo "1940"]
[BlackElo "2039"]
[Result "0-1"]
[Round "08"]
[TimeControl "180+2"]
[Date "2023.04.18"]
[WhiteClock "0:00:03"]
[BlackClock "0:00:27"]

1. e4 {[%clk 0:03:00]}  e5 {[%clk 0:02:59]} 2. Nf3 {[%clk 0:03:00]}  Nc6 {[%clk 0:02:59]} 3. Bb5 {[%clk 0:03:00]}  a6 {[%clk 0:02:58]} 4. Ba4 {[%clk 0:03:00]}  Nf6 {[%clk 0:02:58]} 5. d3 {[%clk 0:02:58]}  b5 {[%clk 0:02:56]} 6. Bb3 {[%clk 0:02:58]}  Bc5 {[%clk 0:02:53]} 7. Nc3 {[%clk 0:02:47]}  h6 {[%clk 0:02:51]} 8. O-O {[%clk 0:02:45]}  O-O {[%clk 0:02:51]} 9. h3 {[%clk 0:02:45]}  Re8 {[%clk 0:02:50]} 10. Be3 {[%clk 0:02:37]}  Bf8 {[%clk 0:02:46]} 11. Re1 {[%clk 0:02:20]}  Na5 {[%clk 0:02:45]} 12. Nh2 {[%clk 0:02:00]}  Bb7 {[%clk 0:02:32]} 13. f4 {[%clk 0:01:54]}  Nxb3 {[%clk 0:02:27]} 14. axb3 {[%clk 0:01:54]}  d5 {[%clk 0:02:11]} 15. fxe5 {[%clk 0:01:50]}  Rxe5 {[%clk 0:02:10]} 16. d4 {[%clk 0:01:46]}  Re6 {[%clk 0:01:41]} 17. e5 {[%clk 0:01:46]}  Ne4 {[%clk 0:01:40]} 18. Nxe4 {[%clk 0:01:13]}  dxe4 {[%clk 0:01:40]} 19. c3 {[%clk 0:01:12]}  Qd5 {[%clk 0:01:36]} 20. b4 {[%clk 0:01:08]}  f6 {[%clk 0:01:26]} 21. exf6 {[%clk 0:01:02]}  Rxf6 {[%clk 0:01:21]} 22. Ng4 {[%clk 0:01:02]}  Rg6 {[%clk 0:01:20]} 23. Ne5 {[%clk 0:00:59]}  Re6 {[%clk 0:01:16]} 24. Qg4 {[%clk 0:00:51]}  a5 {[%clk 0:01:13]} 25. bxa5 {[%clk 0:00:50]}  c5 {[%clk 0:01:11]} 26. Rf1 {[%clk 0:00:44]}  cxd4 {[%clk 0:00:54]} 27. cxd4 {[%clk 0:00:43]}  Bd6 {[%clk 0:00:47]} 28. Ng6 {[%clk 0:00:35]}  h5 {[%clk 0:00:32]} 29. Nf4 {[%clk 0:00:11]}  hxg4 {[%clk 0:00:32]} 30. Nxd5 {[%clk 0:00:12]}  Bxd5 {[%clk 0:00:31]} 31. hxg4 {[%clk 0:00:13]}  Bb4 {[%clk 0:00:27]} 32. a6 {[%clk 0:00:12]}  Bc4 {[%clk 0:00:26]} 33. Rf5 {[%clk 0:00:11]}  Rexa6 {[%clk 0:00:26]} 34. Rc1 {[%clk 0:00:09]}  Ra1 {[%clk 0:00:26]} 35. Rxa1 {[%clk 0:00:08]}  Rxa1+ {[%clk 0:00:27]} 36. Kh2 {[%clk 0:00:07]}  Rb1 {[%clk 0:00:27]} 37. Re5 {[%clk 0:00:03]}  Rxb2 {[%clk 0:00:26]} 38. Rxe4 {[%clk 0:00:04]}  Bd5 {[%clk 0:00:27]} 39. Re8+ {[%clk 0:00:03]}  Kf7 {[%clk 0:00:27]} 40. Rd8 {[%clk 0:00:03]}  Bxg2 {[%clk 0:00:27]} 0-1


[Site "https://www.chess.com"]

[Event "Titled Tuesday Blitz April 18 Late 2023"]
[White "Tyagi, Kushan"]
[Black "ritanovikova"]
[WhiteFideId "2040069"]
[WhiteElo "2269"]
[BlackElo "2131"]
[Result "1-0"]
[Round "08"]
[TimeControl "180+2"]
[Date "2023.04.18"]
[WhiteClock "0:01:06"]
[BlackClock "0:00:30"]

1. d4 {[%clk 0:02:57]}  d5 {[%clk 0:01:56]} 2. c4 {[%clk 0:02:55]}  dxc4 {[%clk 0:01:56]} 3. Nf3 {[%clk 0:02:54]}  Nf6 {[%clk 0:01:56]} 4. e3 {[%clk 0:02:53]}  c5 {[%clk 0:01:56]} 5. Bxc4 {[%clk 0:02:52]}  cxd4 {[%clk 0:01:56]} 6. exd4 {[%clk 0:02:52]}  Nc6 {[%clk 0:01:56]} 7. Nc3 {[%clk 0:02:47]}  Bg4 {[%clk 0:01:54]} 8. Qb3 {[%clk 0:02:35]}  e6 {[%clk 0:01:40]} 9. Qxb7 {[%clk 0:02:33]}  Bxf3 {[%clk 0:01:34]} 10. gxf3 {[%clk 0:02:32]}  Rb8 {[%clk 0:01:33]} 11. Qxc6+ {[%clk 0:02:30]}  Nd7 {[%clk 0:01:24]} 12. Bb5 {[%clk 0:01:59]}  Bb4 {[%clk 0:01:23]} 13. Bf4 {[%clk 0:01:56]}  Rc8 {[%clk 0:01:21]} 14. Qxd7+ {[%clk 0:01:54]}  Qxd7 {[%clk 0:01:22]} 15. Bxd7+ {[%clk 0:01:54]}  Kxd7 {[%clk 0:01:21]} 16. O-O-O {[%clk 0:01:51]}  Bxc3 {[%clk 0:01:20]} 17. bxc3 {[%clk 0:01:51]}  Rxc3+ {[%clk 0:01:21]} 18. Kd2 {[%clk 0:01:49]}  Rxf3 {[%clk 0:01:22]} 19. Be3 {[%clk 0:01:50]}  Kc6 {[%clk 0:01:22]} 20. Rc1+ {[%clk 0:01:48]}  Kd5 {[%clk 0:01:21]} 21. Rc5+ {[%clk 0:01:48]}  Kd6 {[%clk 0:01:18]} 22. Rhc1 {[%clk 0:01:47]}  Ke7 {[%clk 0:01:03]} 23. Rc7+ {[%clk 0:01:46]}  Kf6 {[%clk 0:01:03]} 24. Rxa7 {[%clk 0:01:43]}  Kg6 {[%clk 0:01:01]} 25. Rcc7 {[%clk 0:01:34]}  Rb8 {[%clk 0:01:00]} 26. Rcb7 {[%clk 0:01:33]}  Rc8 {[%clk 0:00:59]} 27. a4 {[%clk 0:01:33]}  Rf5 {[%clk 0:00:58]} 28. Rb5 {[%clk 0:01:26]}  Rf3 {[%clk 0:00:50]} 29. a5 {[%clk 0:01:24]}  Rc4 {[%clk 0:00:46]} 30. Ke2 {[%clk 0:01:16]}  Rh3 {[%clk 0:00:45]} 31. Rbb7 {[%clk 0:01:08]}  Rxh2 {[%clk 0:00:30]} 32. Rxf7 {[%clk 0:01:06]} 1-0


[Site "https://www.chess.com"]

[Event "Titled Tuesday Blitz April 18 Late 2023"]
[White "Georg, Heinz"]
[Black "Manu_ChessExcelsior"]
[WhiteFideId "4607295"]
[WhiteElo "2259"]
[BlackElo "1988"]
[Result "1-0"]
[Round "08"]
[TimeControl "180+2"]
[Date "2023.04.18"]
[WhiteClock "0:00:06"]
[BlackClock "0:00:04"]

1. b4 {[%clk 0:03:00]}  d5 {[%clk 0:02:47]} 2. Bb2 {[%clk 0:03:00]}  Bf5 {[%clk 0:02:47]} 3. e3 {[%clk 0:03:00]}  Nf6 {[%clk 0:02:48]} 4. c4 {[%clk 0:03:00]}  e6 {[%clk 0:02:47]} 5. Nf3 {[%clk 0:02:59]}  Nbd7 {[%clk 0:02:47]} 6. a3 {[%clk 0:02:56]}  c6 {[%clk 0:02:48]} 7. d3 {[%clk 0:02:52]}  Bd6 {[%clk 0:02:47]} 8. Nbd2 {[%clk 0:02:52]}  O-O {[%clk 0:02:47]} 9. cxd5 {[%clk 0:02:52]}  exd5 {[%clk 0:02:44]} 10. Be2 {[%clk 0:02:51]}  Re8 {[%clk 0:02:42]} 11. h3 {[%clk 0:02:50]}  Nf8 {[%clk 0:02:07]} 12. O-O {[%clk 0:02:42]}  Qd7 {[%clk 0:02:05]} 13. Nh2 {[%clk 0:01:55]}  Rad8 {[%clk 0:01:37]} 14. Bxf6 {[%clk 0:01:51]}  gxf6 {[%clk 0:01:37]} 15. Ng4 {[%clk 0:01:47]}  Re6 {[%clk 0:01:24]} 16. Nh6+ {[%clk 0:01:46]}  Kh8 {[%clk 0:01:23]} 17. Nxf5 {[%clk 0:01:47]}  Bc7 {[%clk 0:01:22]} 18. Bg4 {[%clk 0:01:45]}  Bb8 {[%clk 0:01:13]} 19. Nd4 {[%clk 0:01:43]}  Qc7 {[%clk 0:01:12]} 20. g3 {[%clk 0:01:33]}  Ree8 {[%clk 0:01:12]} 21. Qf3 {[%clk 0:01:31]}  Nd7 {[%clk 0:01:12]} 22. Bf5 {[%clk 0:01:26]}  Ne5 {[%clk 0:01:10]} 23. Qh5 {[%clk 0:01:24]}  Ng6 {[%clk 0:01:11]} 24. N2f3 {[%clk 0:01:13]}  Rg8 {[%clk 0:00:55]} 25. Kh2 {[%clk 0:01:07]}  Rde8 {[%clk 0:00:54]} 26. Rg1 {[%clk 0:01:06]}  Rg7 {[%clk 0:00:53]} 27. Bg4 {[%clk 0:01:01]}  Ne5 {[%clk 0:00:45]} 28. Nf5 {[%clk 0:00:55]}  Nxf3+ {[%clk 0:00:36]} 29. Bxf3 {[%clk 0:00:55]}  Rg5 {[%clk 0:00:36]} 30. Qh4 {[%clk 0:00:36]}  Rxf5 {[%clk 0:00:36]} 31. Kg2 {[%clk 0:00:33]}  Rg8 {[%clk 0:00:32]} 32. e4 {[%clk 0:00:28]}  Rfg5 {[%clk 0:00:30]} 33. Bg4 {[%clk 0:00:27]}  dxe4 {[%clk 0:00:28]} 34. dxe4 {[%clk 0:00:26]}  Qe5 {[%clk 0:00:24]} 35. Rae1 {[%clk 0:00:21]}  Qb2 {[%clk 0:00:19]} 36. Re2 {[%clk 0:00:20]}  Qxa3 {[%clk 0:00:18]} 37. f4 {[%clk 0:00:20]}  R5g6 {[%clk 0:00:17]} 38. Kh2 {[%clk 0:00:15]}  Qxb4 {[%clk 0:00:15]} 39. Bf5 {[%clk 0:00:12]}  R6g7 {[%clk 0:00:15]} 40. Qxf6 {[%clk 0:00:11]}  Qc4 {[%clk 0:00:14]} 41. Reg2 {[%clk 0:00:10]}  Qc5 {[%clk 0:00:14]} 42. e5 {[%clk 0:00:08]}  Bc7 {[%clk 0:00:11]} 43. h4 {[%clk 0:00:08]}  Bb6 {[%clk 0:00:12]} 44. h5 {[%clk 0:00:08]}  Qf8 {[%clk 0:00:12]} 45. h6 {[%clk 0:00:08]}  Bxg1+ {[%clk 0:00:12]} 46. Rxg1 {[%clk 0:00:07]}  Qe8 {[%clk 0:00:04]} 47. hxg7+ {[%clk 0:00:07]}  Rxg7 {[%clk 0:00:05]} 48. Kg2 {[%clk 0:00:05]}  Kg8 {[%clk 0:00:05]} 49. Rh1 {[%clk 0:00:05]}  Qf8 {[%clk 0:00:03]} 50. Qd6 {[%clk 0:00:05]}  Qe8 {[%clk 0:00:02]} 51. Qd7 {[%clk 0:00:04]}  Qf8 {[%clk 0:00:01]} 52. Qd6 {[%clk 0:00:04]}  Qe8 {[%clk 0:00:02]} 53. Rb1 {[%clk 0:00:04]}  f6 {[%clk 0:00:01]} 54. e6 {[%clk 0:00:04]}  Kh8 {[%clk 0:00:02]} 55. Rd1 {[%clk 0:00:02]}  Qg8 {[%clk 0:00:02]} 56. Qd8 {[%clk 0:00:03]}  Rxg3+ {[%clk 0:00:02]} 57. Kf2 {[%clk 0:00:02]}  Rg2+ {[%clk 0:00:03]} 58. Ke3 {[%clk 0:00:03]}  Rg3+ {[%clk 0:00:03]} 59. Ke4 {[%clk 0:00:04]}  Qxd8 {[%clk 0:00:02]} 60. Rxd8+ {[%clk 0:00:04]}  Kg7 {[%clk 0:00:03]} 61. e7 {[%clk 0:00:05]}  Kf7 {[%clk 0:00:03]} 62. e8=Q+ {[%clk 0:00:05]}  Kg7 {[%clk 0:00:03]} 63. Qg8+ {[%clk 0:00:06]}  Kh6 {[%clk 0:00:04]} 64. Qxh7# {[%clk 0:00:06]} 1-0


[Site "https://www.chess.com"]

[Event "Titled Tuesday Blitz April 18 Late 2023"]
[White "Fuzesabonyilaci"]
[Black "tandercat"]
[WhiteElo "2321"]
[BlackElo "1972"]
[Result "0-1"]
[Round "08"]
[TimeControl "180+2"]
[Date "2023.04.18"]
[WhiteClock "0:00:05"]
[BlackClock "0:00:07"]

1. e4 {[%clk 0:03:00]}  c5 {[%clk 0:02:59]} 2. Nf3 {[%clk 0:03:00]}  Nc6 {[%clk 0:02:59]} 3. Bb5 {[%clk 0:02:59]}  g6 {[%clk 0:02:58]} 4. O-O {[%clk 0:02:57]}  Bg7 {[%clk 0:02:58]} 5. Re1 {[%clk 0:02:57]}  Nf6 {[%clk 0:02:53]} 6. e5 {[%clk 0:02:53]}  Nd5 {[%clk 0:02:53]} 7. Nc3 {[%clk 0:02:53]}  Nc7 {[%clk 0:02:50]} 8. Bxc6 {[%clk 0:02:52]}  dxc6 {[%clk 0:02:51]} 9. Ne4 {[%clk 0:02:53]}  Ne6 {[%clk 0:02:48]} 10. d3 {[%clk 0:02:45]}  O-O {[%clk 0:02:47]} 11. Be3 {[%clk 0:02:38]}  b6 {[%clk 0:02:43]} 12. Qd2 {[%clk 0:02:28]}  Nd4 {[%clk 0:02:35]} 13. Nxd4 {[%clk 0:02:16]}  cxd4 {[%clk 0:02:36]} 14. Bh6 {[%clk 0:02:14]}  Qd5 {[%clk 0:02:20]} 15. Bxg7 {[%clk 0:01:37]}  Kxg7 {[%clk 0:02:21]} 16. Ng3 {[%clk 0:01:32]}  c5 {[%clk 0:02:15]} 17. Qg5 {[%clk 0:01:22]}  Qe6 {[%clk 0:01:08]} 18. Re4 {[%clk 0:00:40]}  f6 {[%clk 0:00:55]} 19. exf6+ {[%clk 0:00:38]}  exf6 {[%clk 0:00:44]} 20. Qf4 {[%clk 0:00:22]}  Qd7 {[%clk 0:00:32]} 21. Rae1 {[%clk 0:00:21]}  Rf7 {[%clk 0:00:30]} 22. h4 {[%clk 0:00:21]}  Bb7 {[%clk 0:00:30]} 23. R4e2 {[%clk 0:00:19]}  Qd5 {[%clk 0:00:22]} 24. f3 {[%clk 0:00:19]}  h5 {[%clk 0:00:15]} 25. Re8 {[%clk 0:00:16]}  Rxe8 {[%clk 0:00:13]} 26. Rxe8 {[%clk 0:00:17]}  Bc6 {[%clk 0:00:12]} 27. Rb8 {[%clk 0:00:15]}  Qe5 {[%clk 0:00:08]} 28. Qxe5 {[%clk 0:00:14]}  fxe5 {[%clk 0:00:08]} 29. Kf2 {[%clk 0:00:10]}  Bd5 {[%clk 0:00:08]} 30. a3 {[%clk 0:00:09]}  Bc6 {[%clk 0:00:08]} 31. Ne2 {[%clk 0:00:09]}  Bd5 {[%clk 0:00:08]} 32. Ng1 {[%clk 0:00:09]}  e4 {[%clk 0:00:07]} 33. dxe4 {[%clk 0:00:07]}  Bxe4 {[%clk 0:00:08]} 34. Ke2 {[%clk 0:00:05]}  Bxc2 {[%clk 0:00:08]} 35. Kd2 {[%clk 0:00:06]}  Bf5 {[%clk 0:00:08]} 36. Ne2 {[%clk 0:00:06]}  Re7 {[%clk 0:00:08]} 37. Nf4 {[%clk 0:00:06]}  Re3 {[%clk 0:00:08]} 38. Nd5 {[%clk 0:00:05]}  Re6 {[%clk 0:00:07]} 0-1


[Site "https://www.chess.com"]

[Event "Titled Tuesday Blitz April 18 Late 2023"]
[White "Vanek, Tomas"]
[Black "KorolDimitriy75"]
[WhiteFideId "313459"]
[WhiteElo "2052"]
[BlackElo "2353"]
[Result "0-1"]
[Round "08"]
[TimeControl "180+2"]
[Date "2023.04.18"]
[WhiteClock "0:00:05"]
[BlackClock "0:00:07"]

1. a3 {[%clk 0:02:59]}  c5 {[%clk 0:02:59]} 2. g3 {[%clk 0:02:56]}  g6 {[%clk 0:02:59]} 3. Bg2 {[%clk 0:02:56]}  Bg7 {[%clk 0:02:59]} 4. f4 {[%clk 0:02:53]}  Nc6 {[%clk 0:03:00]} 5. Nf3 {[%clk 0:02:52]}  d6 {[%clk 0:03:00]} 6. O-O {[%clk 0:02:52]}  e5 {[%clk 0:03:00]} 7. d3 {[%clk 0:02:45]}  Nge7 {[%clk 0:03:00]} 8. e4 {[%clk 0:02:44]}  O-O {[%clk 0:03:00]} 9. Nc3 {[%clk 0:02:40]}  Nd4 {[%clk 0:02:58]} 10. Nxd4 {[%clk 0:02:36]}  cxd4 {[%clk 0:02:57]} 11. Nd5 {[%clk 0:02:36]}  Nxd5 {[%clk 0:02:46]} 12. exd5 {[%clk 0:02:35]}  Bd7 {[%clk 0:02:43]} 13. fxe5 {[%clk 0:02:32]}  dxe5 {[%clk 0:02:44]} 14. c4 {[%clk 0:02:20]}  dxc3 {[%clk 0:02:28]} 15. bxc3 {[%clk 0:02:19]}  Rc8 {[%clk 0:02:16]} 16. c4 {[%clk 0:02:18]}  b5 {[%clk 0:02:08]} 17. Be3 {[%clk 0:02:06]}  bxc4 {[%clk 0:02:03]} 18. dxc4 {[%clk 0:02:06]}  Rxc4 {[%clk 0:02:04]} 19. Bxa7 {[%clk 0:02:03]}  Qa5 {[%clk 0:01:53]} 20. Be3 {[%clk 0:02:00]}  e4 {[%clk 0:01:36]} 21. Rc1 {[%clk 0:01:55]}  Rxc1 {[%clk 0:01:27]} 22. Qxc1 {[%clk 0:01:51]}  Qxd5 {[%clk 0:01:17]} 23. Rd1 {[%clk 0:01:50]}  Qe6 {[%clk 0:01:09]} 24. Bxe4 {[%clk 0:01:40]}  Rc8 {[%clk 0:00:20]} 25. Bc5 {[%clk 0:00:13]}  Qxe4 {[%clk 0:00:12]} 26. Rxd7 {[%clk 0:00:13]}  Bf8 {[%clk 0:00:11]} 27. Rd4 {[%clk 0:00:04]}  Qxd4+ {[%clk 0:00:09]} 28. Bxd4 {[%clk 0:00:05]}  Rxc1+ {[%clk 0:00:09]} 29. Kg2 {[%clk 0:00:05]}  Rc4 {[%clk 0:00:09]} 30. Be3 {[%clk 0:00:05]}  Bxa3 {[%clk 0:00:09]} 31. Bf4 {[%clk 0:00:05]}  Bf8 {[%clk 0:00:10]} 32. Kh3 {[%clk 0:00:05]}  Bg7 {[%clk 0:00:10]} 33. Kg4 {[%clk 0:00:06]}  h5+ {[%clk 0:00:09]} 34. Kg5 {[%clk 0:00:06]}  Kh7 {[%clk 0:00:08]} 35. h4 {[%clk 0:00:05]}  f6# {[%clk 0:00:07]} 0-1


[Site "https://www.chess.com"]

[Event "Titled Tuesday Blitz April 18 Late 2023"]
[White "Oliveira, Tiago Batista"]
[Black "Kraus, Tomas"]
[WhiteFideId "2108291"]
[BlackFideId "331708"]
[WhiteElo "1962"]
[BlackElo "2389"]
[Result "1-0"]
[Round "08"]
[TimeControl "180+2"]
[Date "2023.04.18"]
[WhiteClock "0:00:15"]
[BlackClock "0:00:03"]

1. d4 {[%clk 0:02:56]}  Nf6 {[%clk 0:02:58]} 2. c4 {[%clk 0:02:56]}  e6 {[%clk 0:02:57]} 3. Nf3 {[%clk 0:02:51]}  Bb4+ {[%clk 0:02:54]} 4. Bd2 {[%clk 0:02:51]}  Qe7 {[%clk 0:02:53]} 5. g3 {[%clk 0:02:51]}  Nc6 {[%clk 0:02:31]} 6. Bg2 {[%clk 0:02:50]}  Bxd2+ {[%clk 0:02:29]} 7. Nbxd2 {[%clk 0:02:49]}  d6 {[%clk 0:02:26]} 8. O-O {[%clk 0:02:48]}  O-O {[%clk 0:02:25]} 9. e4 {[%clk 0:02:48]}  e5 {[%clk 0:02:25]} 10. d5 {[%clk 0:02:48]}  Nb8 {[%clk 0:02:24]} 11. Ne1 {[%clk 0:02:44]}  a5 {[%clk 0:02:21]} 12. Nd3 {[%clk 0:02:42]}  Na6 {[%clk 0:02:18]} 13. Qc2 {[%clk 0:02:35]}  Nd7 {[%clk 0:01:51]} 14. f4 {[%clk 0:02:26]}  exf4 {[%clk 0:01:39]} 15. gxf4 {[%clk 0:02:03]}  Ndc5 {[%clk 0:01:39]} 16. Rae1 {[%clk 0:01:53]}  Nb4 {[%clk 0:01:31]} 17. Nxb4 {[%clk 0:01:52]}  axb4 {[%clk 0:01:32]} 18. b3 {[%clk 0:01:40]}  f6 {[%clk 0:01:00]} 19. Nf3 {[%clk 0:01:35]}  Bg4 {[%clk 0:00:55]} 20. Nd4 {[%clk 0:01:33]}  Rfe8 {[%clk 0:00:55]} 21. h3 {[%clk 0:01:27]}  Bh5 {[%clk 0:00:35]} 22. Rf2 {[%clk 0:00:44]}  Bg6 {[%clk 0:00:35]} 23. Rfe2 {[%clk 0:00:39]}  Qd7 {[%clk 0:00:25]} 24. Qd2 {[%clk 0:00:31]}  Bf7 {[%clk 0:00:15]} 25. Qxb4 {[%clk 0:00:30]}  Re7 {[%clk 0:00:13]} 26. Nf5 {[%clk 0:00:30]}  Ree8 {[%clk 0:00:09]} 27. Qc3 {[%clk 0:00:29]}  Bg6 {[%clk 0:00:07]} 28. Nd4 {[%clk 0:00:24]}  Re7 {[%clk 0:00:03]} 29. Qg3 {[%clk 0:00:24]}  Rae8 {[%clk 0:00:02]} 30. f5 {[%clk 0:00:24]}  Bf7 {[%clk 0:00:02]} 31. Ne6 {[%clk 0:00:21]}  Bxe6 {[%clk 0:00:03]} 32. dxe6 {[%clk 0:00:20]}  Qd8 {[%clk 0:00:03]} 33. Kh2 {[%clk 0:00:15]} 1-0


[Site "https://www.chess.com"]

[Event "Titled Tuesday Blitz April 18 Late 2023"]
[White "Romero Ruscalleda, Josep"]
[Black "Manfroi, Alexander Giannini"]
[WhiteFideId "2231859"]
[BlackFideId "22739335"]
[WhiteElo "2183"]
[BlackElo "1618"]
[Result "1-0"]
[Round "08"]
[TimeControl "180+2"]
[Date "2023.04.18"]
[WhiteClock "0:01:13"]
[BlackClock "0:00:58"]

1. e4 {[%clk 0:03:00]}  c5 {[%clk 0:03:00]} 2. c3 {[%clk 0:03:00]}  e5 {[%clk 0:02:59]} 3. Nf3 {[%clk 0:02:59]}  Nc6 {[%clk 0:02:58]} 4. Bc4 {[%clk 0:02:59]}  h6 {[%clk 0:02:58]} 5. O-O {[%clk 0:02:59]}  Bd6 {[%clk 0:02:58]} 6. d4 {[%clk 0:02:58]}  cxd4 {[%clk 0:02:58]} 7. cxd4 {[%clk 0:02:58]}  Qc7 {[%clk 0:02:44]} 8. Nc3 {[%clk 0:02:51]}  exd4 {[%clk 0:02:39]} 9. Nb5 {[%clk 0:02:50]}  Qb8 {[%clk 0:02:33]} 10. Nfxd4 {[%clk 0:02:41]}  Bxh2+ {[%clk 0:02:22]} 11. Kh1 {[%clk 0:02:41]}  Be5 {[%clk 0:02:23]} 12. Nf5 {[%clk 0:02:38]}  d5 {[%clk 0:02:16]} 13. exd5 {[%clk 0:02:03]}  Bxf5 {[%clk 0:02:05]} 14. dxc6 {[%clk 0:02:02]}  bxc6 {[%clk 0:02:02]} 15. Nd4 {[%clk 0:01:41]}  Qb4 {[%clk 0:01:10]} 16. Nxf5 {[%clk 0:01:14]}  Qxc4 {[%clk 0:01:05]} 17. Re1 {[%clk 0:01:14]}  f6 {[%clk 0:00:58]} 18. Nd6+ {[%clk 0:01:13]} 1-0


[Site "https://www.chess.com"]

[Event "Titled Tuesday Blitz April 18 Late 2023"]
[White "Novikova, Galina"]
[Black "Manon-og, Ramon Jr."]
[WhiteFideId "4157095"]
[BlackFideId "5200776"]
[WhiteElo "1953"]
[BlackElo "2350"]
[Result "1-0"]
[Round "08"]
[TimeControl "180+2"]
[Date "2023.04.18"]
[WhiteClock "0:02:32"]
[BlackClock "0:01:12"]

1. e4 {[%clk 0:03:00]}  e5 {[%clk 0:02:53]} 2. Nf3 {[%clk 0:03:00]}  Nc6 {[%clk 0:02:50]} 3. Bc4 {[%clk 0:03:00]}  Nf6 {[%clk 0:02:45]} 4. Ng5 {[%clk 0:03:00]}  Bc5 {[%clk 0:02:39]} 5. Bxf7+ {[%clk 0:02:59]}  Ke7 {[%clk 0:02:35]} 6. Bc4 {[%clk 0:03:00]}  Qe8 {[%clk 0:02:26]} 7. Nc3 {[%clk 0:02:56]}  Rf8 {[%clk 0:02:19]} 8. O-O {[%clk 0:02:55]}  Qg6 {[%clk 0:02:12]} 9. Be2 {[%clk 0:02:54]}  Bxf2+ {[%clk 0:01:53]} 10. Rxf2 {[%clk 0:02:54]}  Qxg5 {[%clk 0:01:52]} 11. d4 {[%clk 0:02:53]}  Qg6 {[%clk 0:01:48]} 12. dxe5 {[%clk 0:02:51]}  Nxe5 {[%clk 0:01:44]} 13. Bf4 {[%clk 0:02:45]}  d6 {[%clk 0:01:31]} 14. Bxe5 {[%clk 0:02:34]}  dxe5 {[%clk 0:01:29]} 15. Nd5+ {[%clk 0:02:35]}  Nxd5 {[%clk 0:01:26]} 16. Rxf8 {[%clk 0:02:35]}  Kxf8 {[%clk 0:01:25]} 17. Qxd5 {[%clk 0:02:34]}  Qe6 {[%clk 0:01:18]} 18. Rf1+ {[%clk 0:02:33]}  Kg8 {[%clk 0:01:12]} 19. Qd8+ {[%clk 0:02:32]} 1-0


[Site "https://www.chess.com"]

[Event "Titled Tuesday Blitz April 18 Late 2023"]
[White "Caruana, Fabiano"]
[Black "Suleymanli, Aydin"]
[WhiteFideId "2020009"]
[BlackFideId "13413937"]
[WhiteElo "2837"]
[BlackElo "2559"]
[Result "1-0"]
[Round "09"]
[TimeControl "180+2"]
[Date "2023.04.18"]
[WhiteClock "0:00:39"]
[BlackClock "0:00:06"]

1. e4 {[%clk 0:03:00]}  e5 {[%clk 0:02:56]} 2. Nf3 {[%clk 0:03:00]}  Nc6 {[%clk 0:02:57]} 3. Bb5 {[%clk 0:03:00]}  a6 {[%clk 0:02:57]} 4. Ba4 {[%clk 0:03:01]}  Nf6 {[%clk 0:02:58]} 5. d3 {[%clk 0:03:01]}  b5 {[%clk 0:02:57]} 6. Bb3 {[%clk 0:03:02]}  Be7 {[%clk 0:02:56]} 7. O-O {[%clk 0:03:00]}  d6 {[%clk 0:02:53]} 8. a3 {[%clk 0:03:00]}  O-O {[%clk 0:02:53]} 9. Nc3 {[%clk 0:03:00]}  Bg4 {[%clk 0:02:43]} 10. Be3 {[%clk 0:02:59]}  Nd4 {[%clk 0:02:30]} 11. Bxd4 {[%clk 0:02:58]}  exd4 {[%clk 0:02:30]} 12. Nd5 {[%clk 0:02:58]}  Nxd5 {[%clk 0:02:30]} 13. Bxd5 {[%clk 0:02:58]}  Rc8 {[%clk 0:02:30]} 14. h3 {[%clk 0:02:53]}  Bxf3 {[%clk 0:02:29]} 15. Qxf3 {[%clk 0:02:53]}  c6 {[%clk 0:02:29]} 16. Bb3 {[%clk 0:02:53]}  d5 {[%clk 0:02:23]} 17. exd5 {[%clk 0:02:49]}  c5 {[%clk 0:02:23]} 18. Rfe1 {[%clk 0:02:35]}  Bd6 {[%clk 0:02:05]} 19. Re4 {[%clk 0:02:26]}  Qg5 {[%clk 0:01:55]} 20. Qe2 {[%clk 0:02:14]}  h5 {[%clk 0:01:36]} 21. a4 {[%clk 0:02:08]}  Rfd8 {[%clk 0:01:13]} 22. h4 {[%clk 0:02:02]}  Qf5 {[%clk 0:01:05]} 23. Re1 {[%clk 0:01:56]}  g6 {[%clk 0:00:56]} 24. g3 {[%clk 0:01:49]}  Kg7 {[%clk 0:00:52]} 25. Kg2 {[%clk 0:01:48]}  Rc7 {[%clk 0:00:44]} 26. c3 {[%clk 0:01:41]}  dxc3 {[%clk 0:00:31]} 27. bxc3 {[%clk 0:01:42]}  b4 {[%clk 0:00:31]} 28. c4 {[%clk 0:01:28]}  a5 {[%clk 0:00:18]} 29. d4 {[%clk 0:01:15]}  cxd4 {[%clk 0:00:15]} 30. Rxd4 {[%clk 0:01:06]}  Re7 {[%clk 0:00:15]} 31. Qd2 {[%clk 0:01:06]}  Rde8 {[%clk 0:00:08]} 32. Rxe7 {[%clk 0:00:58]}  Rxe7 {[%clk 0:00:09]} 33. c5 {[%clk 0:00:49]}  Bxc5 {[%clk 0:00:07]} 34. d6 {[%clk 0:00:50]}  Bxd4 {[%clk 0:00:07]} 35. Qxd4+ {[%clk 0:00:41]}  Qf6 {[%clk 0:00:04]} 36. Qxf6+ {[%clk 0:00:38]}  Kxf6 {[%clk 0:00:05]} 37. dxe7 {[%clk 0:00:38]}  Kxe7 {[%clk 0:00:06]} 38. Kf3 {[%clk 0:00:39]} 1-0


[Site "https://www.chess.com"]